fUSD/lending_fUSD_20240714
["ID","MTS","AMOUNT","RATE_DAILY","PERIOD"]
[332050909,1720943450978,-500.0,0.00013753,2]
[332050910,1720943450988,-260.73705466,0.00013753,2]
[332050911,1720943450997,-500.0,0.00013753,2]
[332050912,1720943451007,-500.0,0.00013753,2]
[332050913,1720943451016,-500.0,0.00013753,2]
[332050914,1720943451025,-500.0,0.00013753,2]
[332050915,1720943451035,-500.0,0.00013753,2]
[332050916,1720943451044,-500.0,0.00013753,2]
[332050917,1720943451053,-500.0,0.00013753,2]
[332050918,1720943451064,-601.47,0.00013753,2]
[332050919,1720943451074,-500.0,0.00013753,2]
[332050920,1720943451084,-500.0,0.00013753,2]
[332050921,1720943451094,-627.44,0.00013753,2]
[332050922,1720943451104,-500.0,0.00013753,2]
[332050923,1720943451114,-538.18,0.00013753,2]
[332050924,1720943451123,-500.0,0.00013753,2]
[332050925,1720943451133,-500.0,0.00013753,2]
[332050926,1720943451143,-500.0,0.00013753,2]
[332050927,1720943451154,-500.0,0.00013753,2]
[332050928,1720943451164,-500.0,0.00013753,2]
[332050929,1720943451175,-500.0,0.00013753,2]
[332050930,1720943451186,-894.33,0.00013753,2]
[332050931,1720943451196,-500.0,0.00013753,2]
[332050932,1720943451204,-500.0,0.00013753,2]
[332050933,1720943451214,-500.0,0.00013753,2]
[332050934,1720943451223,-500.0,0.00013753,2]
[332050935,1720943451232,-500.0,0.00013753,2]
[332050936,1720943451243,-720.65,0.00013753,2]
[332050937,1720943451252,-500.0,0.00013753,2]
[332050938,1720943451264,-500.0,0.00013753,2]
[332050939,1720943451273,-500.0,0.00013753,2]
[332050940,1720943451282,-500.0,0.00013753,2]
[332050941,1720943451292,-500.0,0.00013753,2]
[332050942,1720943451301,-231.99678539,0.00013753,2]
[332050943,1720943451310,-500.0,0.00013753,2]
[332050944,1720943451319,-500.0,0.00013753,2]
[332050945,1720943451329,-500.0,0.00013753,2]
[332050946,1720943451338,-500.0,0.00013753,2]
[332050947,1720943451347,-500.0,0.00013753,2]
[332050948,1720943451358,-500.0,0.00013753,2]
[332050949,1720943451369,-500.0,0.00013753,2]
[332050950,1720943451379,-500.0,0.00013753,2]
[332050951,1720943451388,-603.37,0.00013753,2]
[332050952,1720943451402,-500.0,0.00013753,2]
[332050953,1720943451411,-376.78821904,0.00013753,2]
[332050954,1720943451422,-861.4,0.00013753,2]
[332050955,1720943451431,-500.0,0.00013753,2]
[332050956,1720943451442,-564.07,0.00013753,2]
[332050957,1720943451451,-500.0,0.00013753,2]
[332050958,1720943451461,-500.0,0.00013753,2]
[332050959,1720943451473,-664.27,0.00013753,2]
[332050960,1720943451483,-500.0,0.00013753,2]
[332050961,1720943451493,-502.94,0.00013753,2]
[332050962,1720943451503,-567.67,0.00013753,2]
[332050963,1720943451511,-500.0,0.00013753,2]
[332050964,1720943451520,-562.25,0.00013753,2]
[332050965,1720943451531,-921.4,0.00013753,2]
[332050966,1720943451540,-582.01,0.00013753,2]
[332050967,1720943451549,-997.62,0.00013753,2]
[332050968,1720943451559,-500.0,0.00013753,2]
[332050969,1720943451568,-500.0,0.00013753,2]
[332050970,1720943451577,-500.0,0.00013753,2]
[332050971,1720943451587,-581.72,0.00013753,2]
[332050972,1720943451598,-500.0,0.00013753,2]
[332050973,1720943451607,-500.0,0.00013753,2]
[332050974,1720943451616,-356.1157917,0.00013753,2]
[332050975,1720943451625,-801.29,0.00013753,2]
[332050976,1720943451635,-531.37,0.00013753,2]
[332050977,1720943451646,-500.0,0.00013753,2]
[332050978,1720943451655,-500.0,0.00013753,2]
[332050979,1720943451665,-500.0,0.00013753,2]
[332050980,1720943451674,-682.04,0.00013753,2]
[332050981,1720943451684,-318.08665389,0.00013753,2]
[332050982,1720943451693,-500.0,0.00013753,2]
[332050983,1720943451702,-500.0,0.00013753,2]
[332050984,1720943451712,-500.0,0.00013753,2]
[332050985,1720943451721,-500.0,0.00013753,2]
[332050986,1720943451731,-500.0,0.00013753,2]
[332050987,1720943451741,-500.0,0.00013753,2]
[332050988,1720943451751,-500.0,0.00013753,2]
[332050989,1720943451760,-792.23,0.00013753,2]
[332050990,1720943451771,-947.99,0.00013753,2]
[332050991,1720943451781,-500.0,0.00013753,2]
[332050992,1720943451792,-500.0,0.00013753,2]
[332050993,1720943451802,-500.0,0.00013753,2]
[332050994,1720943451812,-570.28,0.00013753,2]
[332050995,1720943451822,-500.0,0.00013753,2]
[332050996,1720943451831,-500.0,0.00013753,2]
[332050997,1720943451843,-500.0,0.00013753,2]
[332050998,1720943451854,-500.0,0.00013753,2]
[332050999,1720943451865,-926.7,0.00013753,2]
[332051000,1720943451877,-566.56,0.00013753,2]
[332051001,1720943451887,-500.0,0.00013753,2]
[332051002,1720943451897,-500.0,0.00013753,2]
[332051003,1720943451907,-829.95,0.00013753,2]
[332051004,1720943451918,-1213.2,0.00013753,2]
[332051005,1720943451928,-500.0,0.00013753,2]
[332051006,1720943451939,-500.0,0.00013753,2]
[332051007,1720943451949,-202.29,0.00013753,2]
[332051008,1720943451959,-500.0,0.00013753,2]
[332051009,1720943451968,-500.0,0.00013753,2]
[332051010,1720943451977,-500.0,0.00013753,2]
[332051011,1720943451987,-500.0,0.00013753,2]
[332051012,1720943451996,-500.0,0.00013753,2]
[332051013,1720943452007,-901.37,0.00013753,2]
[332051014,1720943452016,-500.0,0.00013753,2]
[332051015,1720943452025,-500.0,0.00013753,2]
[332051016,1720943452034,-500.0,0.00013753,2]
[332051017,1720943452043,-500.0,0.00013753,2]
[332051018,1720943452052,-988.35,0.00013753,2]
[332051019,1720943452061,-508.15,0.00013753,2]
[332051020,1720943452070,-1223.63,0.00013753,2]
[332051021,1720943452079,-827.09,0.00013753,2]
[332051022,1720943452088,-500.0,0.00013753,2]
[332051023,1720943452097,-500.0,0.00013753,2]
[332051024,1720943452106,-1173.99,0.00013753,2]
[332051025,1720943452115,-907.66,0.00013753,2]
[332051026,1720943452125,-1012.68,0.00013753,2]
[332051027,1720943452134,-575.97,0.00013753,2]
[332051028,1720943452143,-500.0,0.00013753,2]
[332051029,1720943452152,-500.0,0.00013753,2]
[332051030,1720943452161,-500.0,0.00013753,2]
[332051031,1720943452171,-500.0,0.00013753,2]
[332051032,1720943452181,-500.0,0.00013753,2]
[332051033,1720943452190,-500.0,0.00013753,2]
[332051034,1720943452201,-608.08,0.00013753,2]
[332051035,1720943452210,-1818.72,0.00013753,2]
[332051036,1720943452219,-500.0,0.00013753,2]
[332051037,1720943452227,-1265.57,0.00013753,2]
[332051038,1720943452236,-500.0,0.00013753,2]
[332051039,1720943452245,-500.0,0.00013753,2]
[332051040,1720943452254,-500.0,0.00013753,2]
[332051041,1720943452263,-1000.0,0.00013753,2]
[332051042,1720943452272,-1124.51,0.00013753,2]
[332051043,1720943452281,-546.65,0.00013753,2]
[332051044,1720943452290,-500.0,0.00013753,2]
[332051045,1720943452299,-500.0,0.00013753,2]
[332051046,1720943452308,-500.0,0.00013753,2]
[332051047,1720943452318,-562.41,0.00013753,2]
[332051048,1720943452327,-500.0,0.00013753,2]
[332051049,1720943452336,-500.0,0.00013753,2]
[332051050,1720943452344,-679.88,0.00013753,2]
[332051051,1720943452354,-500.0,0.00013753,2]
[332051052,1720943452363,-814.4,0.00013753,2]
[332051053,1720943452372,-536.54,0.00013753,2]
[332051054,1720943452382,-500.0,0.00013753,2]
[332051055,1720943452392,-533.63,0.00013753,2]
[332051056,1720943452404,-274.5,0.00013753,2]
[332051057,1720943452414,-1016.78,0.00013753,2]
[332051058,1720943452423,-522.02,0.00013753,2]
[332051059,1720943452433,-500.0,0.00013753,2]
[332051060,1720943452444,-500.0,0.00013753,2]
[332051061,1720943452453,-711.75,0.00013753,2]
[332051062,1720943452463,-620.91,0.00013753,2]
[332051063,1720943452474,-500.0,0.00013753,2]
[332051064,1720943452483,-1590.43,0.00013753,2]
[332051065,1720943452492,-500.0,0.00013753,2]
[332051066,1720943452501,-500.0,0.00013753,2]
[332051067,1720943452510,-1235.0,0.00013753,2]
[332051068,1720943452520,-500.0,0.00013753,2]
[332051069,1720943452529,-500.0,0.00013753,2]
[332051070,1720943452538,-500.0,0.00013753,2]
[332051071,1720943452547,-500.0,0.00013753,2]
[332051072,1720943452556,-500.0,0.00013753,2]
[332051073,1720943452566,-500.0,0.00013753,2]
[332051074,1720943452576,-1810.72,0.00013753,2]
[332051075,1720943452585,-500.0,0.00013753,2]
[332051076,1720943452595,-298.11,0.00013753,2]
[332051077,1720943452603,-500.0,0.00013753,2]
[332051078,1720943452613,-767.87,0.00013753,2]
[332051079,1720943452622,-500.0,0.00013753,2]
[332051080,1720943452631,-1242.56,0.00013753,2]
[332051081,1720943452640,-500.0,0.00013753,2]
[332051082,1720943452649,-794.49,0.00013753,2]
[332051083,1720943452659,-596.49,0.00013753,2]
[332051084,1720943452668,-500.0,0.00013753,2]
[332051085,1720943452677,-848.93,0.00013753,2]
[332051086,1720943452687,-500.0,0.00013753,2]
[332051087,1720943452696,-500.0,0.00013753,2]
[332051088,1720943452706,-500.0,0.00013753,2]
[332051089,1720943452715,-1920.52,0.00013753,2]
[332051090,1720943452724,-500.0,0.00013753,2]
[332051091,1720943452733,-821.38,0.00013753,2]
[332051092,1720943452742,-1422.57,0.00013753,2]
[332051093,1720943452751,-500.0,0.00013753,2]
[332051094,1720943452759,-1103.82,0.00013753,2]
[332051095,1720943452768,-500.0,0.00013753,2]
[332051096,1720943452778,-500.0,0.00013753,2]
[332051097,1720943452787,-986.14,0.00013753,2]
[332051098,1720943452796,-500.0,0.00013753,2]
[332051099,1720943452806,-500.0,0.00013753,2]
[332051100,1720943452815,-500.0,0.00013753,2]
[332051101,1720943452825,-1498.24,0.00013753,2]
[332051102,1720943452833,-500.0,0.00013753,2]
[332051103,1720943452843,-500.0,0.00013753,2]
[332051104,1720943452852,-926.93,0.00013753,2]
[332051105,1720943452861,-2027.51,0.00013753,2]
[332051106,1720943452870,-1079.09,0.00013753,2]
[332051107,1720943452879,-914.49,0.00013753,2]
[332051108,1720943452888,-500.0,0.00013753,2]
[332051109,1720943452897,-500.0,0.00013753,2]
[332051110,1720943452906,-500.0,0.00013753,2]
[332051111,1720943452915,-500.0,0.00013753,2]
[332051112,1720943452925,-1378.52,0.00013753,2]
[332051113,1720943452934,-500.0,0.00013753,2]
[332051114,1720943452945,-500.0,0.00013753,2]
[332051115,1720943452955,-500.0,0.00013753,2]
[332051116,1720943452965,-500.0,0.00013753,2]
[332051117,1720943452974,-745.24,0.00013753,2]
[332051118,1720943452983,-500.0,0.00013753,2]
[332051119,1720943452993,-1241.3,0.00013753,2]
[332051120,1720943453002,-500.0,0.00013753,2]
[332051121,1720943453011,-500.0,0.00013753,2]
[332051122,1720943453020,-500.0,0.00013753,2]
[332051123,1720943453029,-500.0,0.00013753,2]
[332051124,1720943453038,-661.8,0.00013753,2]
[332051125,1720943453047,-700.89,0.00013753,2]
[332051126,1720943453057,-1527.5,0.00013753,2]
[332051127,1720943453066,-770.85,0.00013753,2]
[332051128,1720943453075,-624.03,0.00013753,2]
[332051129,1720943453084,-500.0,0.00013753,2]
[332051130,1720943453094,-1139.55,0.00013753,2]
[332051131,1720943453103,-500.0,0.00013753,2]
[332051132,1720943453112,-916.95,0.00013753,2]
[332051133,1720943453121,-500.0,0.00013753,2]
[332051134,1720943453130,-500.0,0.00013753,2]
[332051135,1720943453139,-500.0,0.00013753,2]
[332051136,1720943453149,-834.37,0.00013753,2]
[332051137,1720943453158,-500.0,0.00013753,2]
[332051138,1720943453167,-1157.11,0.00013753,2]
[332051139,1720943453177,-500.0,0.00013753,2]
[332051140,1720943453186,-500.0,0.00013753,2]
[332051141,1720943453195,-500.0,0.00013753,2]
[332051142,1720943453204,-500.0,0.00013753,2]
[332051143,1720943453213,-741.2,0.00013753,2]
[332051144,1720943453222,-1548.19,0.00013753,2]
[332051145,1720943453231,-500.0,0.00013753,2]
[332051146,1720943453240,-1153.7,0.00013753,2]
[332051147,1720943453249,-550.13,0.00013753,2]
[332051148,1720943453258,-1382.74,0.00013753,2]
[332051149,1720943453267,-853.94,0.00013753,2]
[332051150,1720943453276,-500.0,0.00013753,2]
[332051151,1720943453285,-1209.27,0.00013753,2]
[332051152,1720943453294,-553.16,0.00013753,2]
[332051153,1720943453303,-500.0,0.00013753,2]
[332051154,1720943453313,-500.0,0.00013753,2]
[332051155,1720943453323,-500.0,0.00013753,2]
[332051156,1720943453332,-500.0,0.00013753,2]
[332051157,1720943453341,-500.0,0.00013753,2]
[332051158,1720943453350,-500.0,0.00013753,2]
[332051159,1720943453359,-192.46280402,0.00013753,2]
[332051160,1720943453368,-1230.92,0.00013753,2]
[332051161,1720943453378,-500.0,0.00013753,2]
[332051162,1720943453388,-500.0,0.00013753,2]
[332051163,1720943453400,-586.64,0.00013753,2]
[332051164,1720943453409,-1235.56,0.00013753,2]
[332051165,1720943453418,-500.0,0.00013753,2]
[332051166,1720943453428,-500.0,0.00013753,2]
[332051167,1720943453438,-740.43,0.00013753,2]
[332051168,1720943453449,-500.0,0.00013753,2]
[332051169,1720943453459,-500.0,0.00013753,2]
[332051170,1720943453469,-716.96,0.00013753,2]
[332051171,1720943453480,-791.48,0.00013753,2]
[332051172,1720943453490,-500.0,0.00013753,2]
[332051173,1720943453500,-500.56,0.00013753,2]
[332051174,1720943453510,-1493.38,0.00013753,2]
[332051175,1720943453519,-500.0,0.00013753,2]
[332051176,1720943453529,-500.0,0.00013753,2]
[332051177,1720943453538,-500.0,0.00013753,2]
[332051178,1720943453547,-500.0,0.00013753,2]
[332051179,1720943453557,-500.0,0.00013753,2]
[332051180,1720943453568,-500.0,0.00013753,2]
[332051181,1720943453577,-1054.7,0.00013753,2]
[332051182,1720943453586,-500.0,0.00013753,2]
[332051183,1720943453597,-1972.39,0.00013753,2]
[332051184,1720943453607,-500.0,0.00013753,2]
[332051185,1720943453616,-592.38,0.00013753,2]
[332051186,1720943453626,-500.0,0.00013753,2]
[332051187,1720943453637,-500.0,0.00013753,2]
[332051188,1720943453647,-500.0,0.00013753,2]
[332051189,1720943453657,-1293.68,0.00013753,2]
[332051190,1720943453666,-706.46,0.00013753,2]
[332051191,1720943453676,-998.12,0.00013753,2]
[332051192,1720943453686,-515.53,0.00013753,2]
[332051193,1720943453696,-1645.84,0.00013753,2]
[332051194,1720943453705,-500.0,0.00013753,2]
[332051195,1720943453715,-500.0,0.00013753,2]
[332051196,1720943453725,-500.0,0.00013753,2]
[332051197,1720943453736,-1030.75,0.00013753,2]
[332051198,1720943453746,-1072.82,0.00013753,2]
[332051199,1720943453756,-500.0,0.00013753,2]
[332051200,1720943453766,-500.0,0.00013753,2]
[332051201,1720943453778,-500.0,0.00013753,2]
[332051202,1720943453788,-1309.79,0.00013753,2]
[332051203,1720943453797,-500.0,0.00013753,2]
[332051204,1720943453806,-704.59,0.00013753,2]
[332051205,1720943453816,-500.0,0.00013753,2]
[332051206,1720943453825,-500.0,0.00013753,2]
[332051207,1720943453834,-345.55431398,0.00013753,2]
[332051208,1720943453844,-500.0,0.00013753,2]
[332051209,1720943453853,-1519.32,0.00013753,2]
[332051210,1720943453862,-1303.05,0.00013753,2]
[332051211,1720943453871,-500.0,0.00013753,2]
[332051212,1720943453880,-500.0,0.00013753,2]
[332051213,1720943453889,-333.58049491,0.00013753,2]
[332051214,1720943453899,-564.05,0.00013753,2]
[332051215,1720943453909,-500.0,0.00013753,2]
[332051216,1720943453919,-563.78,0.00013753,2]
[332051217,1720943453930,-863.59,0.00013753,2]
[332051218,1720943453941,-1632.02,0.00013753,2]
[332051219,1720943453951,-500.0,0.00013753,2]
[332051220,1720943453960,-766.88,0.00013753,2]
[332051221,1720943453970,-500.0,0.00013753,2]
[332051222,1720943453980,-579.47,0.00013753,2]
[332051223,1720943453991,-500.0,0.00013753,2]
[332051224,1720943454001,-500.0,0.00013753,2]
[332051225,1720943454011,-500.0,0.00013753,2]
[332051226,1720943454021,-746.72,0.00013753,2]
[332051227,1720943454031,-1503.41,0.00013753,2]
[332051228,1720943454039,-123.31750603,0.00013753,2]
[332051229,1720943454551,-783.57404004,0.00013753,2]
[332051230,1720943454569,-147.86845393,0.00013753,2]
[332051231,1720943454579,-528.17,0.00013753,2]
[332051232,1720943454588,-385.9171326,0.00013753,2]
[332051233,1720943454600,-114.0828674,0.00013753,2]
[332051234,1720943454609,-548.85913267,0.00013753,2]
[332051235,1720943454621,-342.72086733,0.00013753,2]
[332051236,1720943454630,-417.98264367,0.00013753,2]
[332051237,1720943454642,-82.01735633,0.00013753,2]
[332051238,1720943454652,-496.66738228,0.00013753,2]
[332051239,1720943454661,-761.580029,0.00013753,2]
[332051240,1720943454674,-119.629971,0.00013753,2]
[332051241,1720943454683,-552.12,0.00013753,2]
[332051242,1720943454693,-500.0,0.00013753,2]
[332051243,1720943454703,-86.53542042,0.00013753,2]
[332051244,1720943454726,-413.46457958,0.00013753,2]
[332051245,1720943454736,-500.0,0.00013753,2]
[332051246,1720943454745,-1340.09,0.00013753,2]
[332051247,1720943454755,-500.0,0.00013753,2]
[332051248,1720943454765,-500.0,0.00013753,2]
[332051249,1720943454775,-500.0,0.00013753,2]
[332051250,1720943454784,-2038.49,0.00013753,2]
[332051251,1720943454793,-500.0,0.00013753,2]
[332051252,1720943454803,-484.86057989,0.00013753,2]
[332051253,1720943455198,-500.0,0.00013698,2]
[332051254,1720943455208,-500.0,0.00013698,2]
[332051255,1720943455218,-688.60942011,0.00013753,2]
[332051256,1720943455228,-597.48,0.00013753,2]
[332051257,1720943455238,-551.36,0.00013753,2]
[332051258,1720943455247,-500.0,0.00013753,2]
[332051259,1720943455257,-500.0,0.00013753,2]
[332051260,1720943455266,-500.0,0.00013753,2]
[332051261,1720943455276,-679.73,0.00013753,2]
[332051262,1720943455286,-500.0,0.00013753,2]
[332051263,1720943455295,-1234.63,0.00013753,2]
[332051264,1720943455305,-500.0,0.00013753,2]
[332051265,1720943455314,-500.0,0.00013753,2]
[332051266,1720943455324,-514.75716247,0.00013753,2]
[332051267,1720943455334,-500.0,0.00013753,2]
[332051268,1720943455343,-720.57,0.00013753,2]
[332051269,1720943455353,-500.0,0.00013753,2]
[332051270,1720943455363,-500.0,0.00013753,2]
[332051271,1720943455372,-500.0,0.00013753,2]
[332051272,1720943455382,-502.7,0.00013753,2]
[332051273,1720943455393,-816.32,0.00013753,2]
[332051274,1720943455407,-500.0,0.00013753,2]
[332051275,1720943455417,-1084.63,0.00013753,2]
[332051276,1720943455426,-1913.02,0.00013753,2]
[332051277,1720943455436,-403.51220726,0.00013753,2]
[332051278,1720943455451,-96.48779274,0.00013753,2]
[332051279,1720943455461,-500.0,0.00013753,2]
[332051280,1720943455471,-500.0,0.00013753,2]
[332051281,1720943455481,-1039.22,0.00013753,2]
[332051282,1720943455490,-500.0,0.00013753,2]
[332051283,1720943455500,-500.0,0.00013753,2]
[332051284,1720943455510,-534.79,0.00013753,2]
[332051285,1720943455519,-500.0,0.00013753,2]
[332051286,1720943455529,-500.0,0.00013753,2]
[332051287,1720943455539,-500.0,0.00013753,2]
[332051288,1720943455548,-500.0,0.00013753,2]
[332051289,1720943455558,-500.0,0.00013753,2]
[332051290,1720943455567,-500.0,0.00013753,2]
[332051291,1720943455577,-890.58,0.00013753,2]
[332051292,1720943455586,-500.0,0.00013753,2]
[332051293,1720943455596,-708.37,0.00013753,2]
[332051294,1720943455606,-1178.42,0.00013753,2]
[332051295,1720943455900,-529.52,0.00013753,2]
[332051296,1720943455912,-500.0,0.00013753,2]
[332051297,1720943455922,-500.0,0.00013753,2]
[332051298,1720943455932,-389.70932354,0.00013753,2]
[332051299,1720943455942,-500.0,0.00013753,2]
[332051300,1720943455953,-500.0,0.00013753,2]
[332051301,1720943455963,-500.0,0.00013753,2]
[332051302,1720943455972,-736.07,0.00013753,2]
[332051303,1720943455983,-1032.02,0.00013753,2]
[332051304,1720943455995,-836.29,0.00013753,2]
[332051305,1720943456006,-500.0,0.00013753,2]
[332051306,1720943456016,-500.0,0.00013753,2]
[332051307,1720943456027,-559.34,0.00013753,2]
[332051308,1720943456038,-634.82,0.00013753,2]
[332051309,1720943456050,-608.73,0.00013753,2]
[332051310,1720943456061,-794.6,0.00013753,2]
[332051311,1720943456070,-533.81,0.00013753,2]
[332051312,1720943456079,-523.88,0.00013753,2]
[332051313,1720943456090,-799.31,0.00013753,2]
[332051314,1720943456103,-500.0,0.00013753,2]
[332051315,1720943456113,-1143.01,0.00013753,2]
[332051316,1720943456123,-1061.18,0.00013753,2]
[332051317,1720943456132,-858.1,0.00013753,2]
[332051318,1720943456143,-500.0,0.00013753,2]
[332051319,1720943456154,-500.0,0.00013753,2]
[332051320,1720943456165,-500.0,0.00013753,2]
[332051321,1720943456174,-500.0,0.00013753,2]
[332051322,1720943456185,-630.87,0.00013753,2]
[332051323,1720943456196,-500.0,0.00013753,2]
[332051324,1720943456205,-812.45,0.00013753,2]
[332051325,1720943456215,-500.0,0.00013753,2]
[332051326,1720943456224,-1228.45,0.00013753,2]
[332051327,1720943456234,-500.0,0.00013753,2]
[332051328,1720943456244,-500.0,0.00013753,2]
[332051329,1720943456255,-693.05,0.00013753,2]
[332051330,1720943456264,-500.0,0.00013753,2]
[332051331,1720943456273,-500.0,0.00013753,2]
[332051332,1720943456282,-500.0,0.00013753,2]
[332051333,1720943456292,-500.0,0.00013753,2]
[332051334,1720943456301,-670.08,0.00013753,2]
[332051335,1720943456310,-500.0,0.00013753,2]
[332051336,1720943456319,-662.88,0.00013753,2]
[332051337,1720943456328,-500.0,0.00013753,2]
[332051338,1720943456337,-186.34954446,0.00013753,2]
[332051339,1720943456347,-500.0,0.00013753,2]
[332051340,1720943456357,-500.0,0.00013753,2]
[332051341,1720943456367,-1824.7,0.00013753,2]
[332051342,1720943456377,-500.0,0.00013753,2]
[332051343,1720943456388,-500.0,0.00013753,2]
[332051344,1720943456399,-833.72,0.00013753,2]
[332051345,1720943456412,-500.0,0.00013753,2]
[332051346,1720943456423,-500.0,0.00013753,2]
[332051347,1720943456433,-500.0,0.00013753,2]
[332051348,1720943456444,-672.07,0.00013753,2]
[332051349,1720943456453,-500.0,0.00013753,2]
[332051350,1720943456463,-500.0,0.00013753,2]
[332051351,1720943456474,-500.0,0.00013753,2]
[332051352,1720943456483,-1136.43,0.00013753,2]
[332051353,1720943456494,-500.0,0.00013753,2]
[332051354,1720943456503,-686.47,0.00013753,2]
[332051355,1720943456512,-500.0,0.00013753,2]
[332051356,1720943456522,-500.0,0.00013753,2]
[332051357,1720943456532,-500.0,0.00013753,2]
[332051358,1720943456541,-500.0,0.00013753,2]
[332051359,1720943456550,-1013.27,0.00013753,2]
[332051360,1720943456559,-500.0,0.00013753,2]
[332051361,1720943456569,-500.0,0.00013753,2]
[332051362,1720943456578,-500.0,0.00013753,2]
[332051363,1720943456587,-819.58,0.00013753,2]
[332051364,1720943456597,-500.0,0.00013753,2]
[332051365,1720943456606,-542.18,0.00013753,2]
[332051366,1720943456616,-500.0,0.00013753,2]
[332051367,1720943456626,-769.2,0.00013753,2]
[332051368,1720943456637,-500.0,0.00013753,2]
[332051369,1720943456648,-588.72,0.00013753,2]
[332051370,1720943456659,-687.68,0.00013753,2]
[332051371,1720943456669,-500.0,0.00013753,2]
[332051372,1720943456680,-500.0,0.00013753,2]
[332051373,1720943456689,-682.95,0.00013753,2]
[332051374,1720943456699,-822.31,0.00013753,2]
[332051375,1720943456709,-876.63,0.00013753,2]
[332051376,1720943456718,-500.0,0.00013753,2]
[332051377,1720943456728,-500.0,0.00013753,2]
[332051378,1720943456738,-500.0,0.00013753,2]
[332051379,1720943456749,-500.0,0.00013753,2]
[332051380,1720943456759,-500.0,0.00013753,2]
[332051381,1720943456771,-500.0,0.00013753,2]
[332051382,1720943456781,-500.0,0.00013753,2]
[332051383,1720943456792,-500.0,0.00013753,2]
[332051384,1720943456801,-500.0,0.00013753,2]
[332051385,1720943456812,-844.43,0.00013753,2]
[332051386,1720943456823,-687.06,0.00013753,2]
[332051387,1720943456833,-500.0,0.00013753,2]
[332051388,1720943456843,-705.82,0.00013753,2]
[332051389,1720943456853,-812.86,0.00013753,2]
[332051390,1720943456863,-500.0,0.00013753,2]
[332051391,1720943456873,-500.0,0.00013753,2]
[332051392,1720943456883,-864.62,0.00013753,2]
[332051393,1720943456895,-500.0,0.00013753,2]
[332051394,1720943456905,-706.07,0.00013753,2]
[332051395,1720943456915,-262.68697984,0.00013753,2]
[332051396,1720943456925,-500.0,0.00013753,2]
[332051397,1720943456935,-500.0,0.00013753,2]
[332051398,1720943456946,-905.64,0.00013753,2]
[332051399,1720943456956,-1160.41,0.00013753,2]
[332051400,1720943456965,-500.0,0.00013753,2]
[332051401,1720943456977,-500.0,0.00013753,2]
[332051402,1720943456987,-500.0,0.00013753,2]
[332051403,1720943456997,-500.0,0.00013753,2]
[332051404,1720943457006,-500.0,0.00013753,2]
[332051405,1720943457015,-511.14,0.00013753,2]
[332051406,1720943457024,-623.91,0.00013753,2]
[332051407,1720943457033,-864.52,0.00013753,2]
[332051408,1720943457042,-1103.69,0.00013753,2]